[Event "*** Qualifier 4: Titled Tuesday 3|2 Blitz"]
[Site "Chess.com"]
[Date "2017.04.25"]
[Round "3"]
[White "rasool78"]
[Black "GMOratovsky"]
[Result "0-1"]
[WhiteElo "2230"]
[BlackElo "2313"]
[TimeControl "180+2"]
[EndTime "13:31:39 PDT"]
[Termination "GMOratovsky won by resignation"]

1. e4 {[%clk 0:03:00.6]} 1... d6 {[%clk 0:03:00.2]} 2. Nc3 {[%clk 0:02:59.5]}
2... Nf6 {[%clk 0:03:01.5]} 3. g3 {[%clk 0:02:59.6]} 3... e5 {[%clk 0:03:01.8]}
4. Bg2 {[%clk 0:03:00.1]} 4... c6 {[%clk 0:03:03.4]} 5. h3 {[%clk 0:03:01]} 5...
b5 {[%clk 0:03:04.1]} 6. d3 {[%clk 0:02:54.4]} 6... Be7 {[%clk 0:03:04.5]} 7.
Nf3 {[%clk 0:02:45.4]} 7... O-O {[%clk 0:03:05.8]} 8. O-O {[%clk 0:02:43.6]}
8... a5 {[%clk 0:03:07.1]} 9. Nh2 {[%clk 0:02:40]} 9... Nbd7 {[%clk 0:03:05.4]}
10. f4 {[%clk 0:02:37.1]} 10... Ba6 {[%clk 0:03:05.3]} 11. Kh1 {[%clk
0:02:19.1]} 11... b4 {[%clk 0:03:05.8]} 12. Ne2 {[%clk 0:02:18.8]} 12... d5
{[%clk 0:03:02.2]} 13. fxe5 {[%clk 0:01:43.2]} 13... Nxe5 {[%clk 0:03:04.1]} 14.
exd5 {[%clk 0:01:24.4]} 14... Nxd5 {[%clk 0:03:00.2]} 15. Nf4 {[%clk 0:01:07.2]}
15... Nxf4 {[%clk 0:03:00.2]} 16. gxf4 {[%clk 0:00:55.6]} 16... Ng6 {[%clk
0:02:58.7]} 17. f5 {[%clk 0:00:35.1]} 17... Ne5 {[%clk 0:02:55.8]} 18. Ng4
{[%clk 0:00:33.4]} 18... Nxg4 {[%clk 0:02:54.5]} 19. Qxg4 {[%clk 0:00:32.6]}
19... Bf6 {[%clk 0:02:55.9]} 20. Bxc6 {[%clk 0:00:27.8]} 20... Rc8 {[%clk
0:02:56.3]} 21. Be4 {[%clk 0:00:22.9]} 21... Rxc2 {[%clk 0:02:57.3]} 22. Rg1
{[%clk 0:00:18.8]} 22... Bxd3 {[%clk 0:02:57.7]} 23. Bh6 {[%clk 0:00:11.2]}
23... Bxe4+ {[%clk 0:02:55.5]} 24. Qxe4 {[%clk 0:00:11.9]} 24... Qc7 {[%clk
0:02:55.5]} 25. Bf4 {[%clk 0:00:03.2]} 25... Qc6 {[%clk 0:02:56.4]} 26. Qxc6
{[%clk 0:00:03.5]} 26... Rxc6 {[%clk 0:02:58.3]} 27. Rac1 {[%clk 0:00:02]} 27...
Rxc1 {[%clk 0:02:58.3]} 28. Rxc1 {[%clk 0:00:03.9]} 28... Bxb2 {[%clk
0:02:59.4]} 29. Rc5 {[%clk 0:00:05.4]} 29... a4 {[%clk 0:03:00.5]} 30. Ra5
{[%clk 0:00:06.3]} 30... a3 {[%clk 0:03:01.7]} 31. Rb5 {[%clk 0:00:07.9]} 31...
Bc3 {[%clk 0:03:02.8]} 32. Bd6 {[%clk 0:00:08.8]} 32... Rd8 {[%clk 0:02:57.6]}
33. Bxb4 {[%clk 0:00:10]} 33... Bxb4 {[%clk 0:02:59.1]} 34. Rxb4 {[%clk
0:00:11.5]} 34... h5 {[%clk 0:03:00.1]} 35. Rb3 {[%clk 0:00:08.9]} 35... Rd1+
{[%clk 0:03:00.8]} 36. Kg2 {[%clk 0:00:10.4]} 36... Rd2+ {[%clk 0:03:02.7]} 37.
Kg3 {[%clk 0:00:12]} 37... Rxa2 {[%clk 0:03:03.9]} 38. Rb8+ {[%clk 0:00:11.4]}
38... Kh7 {[%clk 0:03:05.2]} 39. Kh4 {[%clk 0:00:13.1]} 39... Rf2 {[%clk
0:02:59.1]} 40. Rb5 {[%clk 0:00:13.4]} 40... Rf4+ {[%clk 0:02:48.1]} 41. Kxh5
{[%clk 0:00:12.1]} 41... a2 {[%clk 0:02:47.8]} 42. Ra5 {[%clk 0:00:12.4]} 42...
Rxf5+ {[%clk 0:02:48.9]} 43. Rxf5 {[%clk 0:00:13.1]} 43... g6+ {[%clk
0:02:50.4]} 0-1

[Event "*** Qualifier 4: Titled Tuesday 3|2 Blitz"]
[Site "Chess.com"]
[Date "2017.04.25"]
[Round "3"]
[White "GM_Huschenbeth"]
[Black "roldieyi"]
[Result "1-0"]
[WhiteElo "2319"]
[BlackElo "2121"]
[TimeControl "180+2"]
[EndTime "13:32:10 PDT"]
[Termination "GM_Huschenbeth won by checkmate"]

1. e4 {[%clk 0:03:02]} 1... c6 {[%clk 0:02:56.3]} 2. d4 {[%clk 0:03:02.5]} 2...
d5 {[%clk 0:02:51.9]} 3. e5 {[%clk 0:03:04]} 3... Bf5 {[%clk 0:02:50.6]} 4. Nf3
{[%clk 0:03:05.9]} 4... e6 {[%clk 0:02:47.2]} 5. Be2 {[%clk 0:03:07.8]} 5... c5
{[%clk 0:02:43.8]} 6. Be3 {[%clk 0:03:08.6]} 6... Nc6 {[%clk 0:02:35.8]} 7. dxc5
{[%clk 0:03:01]} 7... Qc7 {[%clk 0:02:19.2]} 8. O-O {[%clk 0:02:46.8]} 8... Nxe5
{[%clk 0:02:07.6]} 9. Nxe5 {[%clk 0:02:45.6]} 9... Qxe5 {[%clk 0:02:07.6]} 10.
Bb5+ {[%clk 0:02:47.2]} 10... Ke7 {[%clk 0:01:57.9]} 11. c4 {[%clk 0:02:42.5]}
11... Qxb2 {[%clk 0:01:17.7]} 12. Bd4 {[%clk 0:02:42.4]} 12... Qb4 {[%clk
0:01:15.1]} 13. cxd5 {[%clk 0:02:42.3]} 13... Qxb5 {[%clk 0:01:11.2]} 14. Nc3
{[%clk 0:02:38.8]} 14... Qd3 {[%clk 0:01:01.9]} 15. Qb3 {[%clk 0:02:35.8]} 15...
Qxd4 {[%clk 0:00:57.1]} 16. Qxb7+ {[%clk 0:02:36.2]} 16... Kf6 {[%clk
0:00:58.1]} 17. Qxa8 {[%clk 0:02:37.3]} 17... Bxc5 {[%clk 0:00:50.6]} 18. Rac1
{[%clk 0:02:18.2]} 18... Ba3 {[%clk 0:00:41.3]} 19. Nb5 {[%clk 0:02:13]} 19...
Qa4 {[%clk 0:00:30.5]} 20. Nxa3 {[%clk 0:02:11.2]} 20... Qxa3 {[%clk 0:00:30.8]}
21. Rc8 {[%clk 0:02:05]} 21... Be4 {[%clk 0:00:18.7]} 22. Rxg8 {[%clk
0:01:50.4]} 22... Rxg8 {[%clk 0:00:05.9]} 23. Qxg8 {[%clk 0:01:52.3]} 23... exd5
{[%clk 0:00:06.9]} 24. h4 {[%clk 0:01:39.5]} 24... Qxa2 {[%clk 0:00:05.3]} 25.
Qd8+ {[%clk 0:01:39.1]} 25... Ke6 {[%clk 0:00:05.3]} 26. Rc1 {[%clk 0:01:39.7]}
26... g6 {[%clk 0:00:04.7]} 27. Rc6+ {[%clk 0:01:39.1]} 27... Ke5 {[%clk
0:00:05.1]} 28. Qf6# {[%clk 0:01:39.8]} 1-0

[Event "*** Qualifier 4: Titled Tuesday 3|2 Blitz"]
[Site "Chess.com"]
[Date "2017.04.25"]
[Round "3"]
[White "Rodalquilar"]
[Black "grzechu96"]
[Result "1-0"]
[WhiteElo "2554"]
[BlackElo "2389"]
[TimeControl "180+2"]
[EndTime "13:32:15 PDT"]
[Termination "Rodalquilar won by resignation"]

1. d4 {[%clk 0:03:02]} 1... Nf6 {[%clk 0:03:00.7]} 2. Bf4 {[%clk 0:03:03.1]}
2... g6 {[%clk 0:03:00.6]} 3. e3 {[%clk 0:03:04.4]} 3... Bg7 {[%clk 0:03:01.8]}
4. Nf3 {[%clk 0:03:05.8]} 4... O-O {[%clk 0:02:59.6]} 5. Be2 {[%clk 0:03:07.4]}
5... d6 {[%clk 0:02:59.3]} 6. O-O {[%clk 0:03:08.8]} 6... Nfd7 {[%clk
0:03:00.6]} 7. e4 {[%clk 0:03:09.4]} 7... e5 {[%clk 0:03:01.7]} 8. Bg5 {[%clk
0:03:10.5]} 8... Qe8 {[%clk 0:03:01.2]} 9. Nc3 {[%clk 0:03:01.6]} 9... exd4
{[%clk 0:02:50.9]} 10. Nd5 {[%clk 0:02:46.2]} 10... Qxe4 {[%clk 0:01:05.8]} 11.
Nxc7 {[%clk 0:02:45.7]} 11... b6 {[%clk 0:01:06.8]} 12. Nxa8 {[%clk 0:02:37.9]}
12... Qxa8 {[%clk 0:01:07.4]} 13. Nxd4 {[%clk 0:02:38]} 13... Bb7 {[%clk
0:01:09]} 14. Bf3 {[%clk 0:02:27.1]} 14... Bxf3 {[%clk 0:01:09.4]} 15. Nxf3
{[%clk 0:02:27.6]} 15... Bxb2 {[%clk 0:01:09]} 16. Rb1 {[%clk 0:02:28.5]} 16...
Bg7 {[%clk 0:01:06.8]} 17. Qxd6 {[%clk 0:02:28.3]} 17... Nc5 {[%clk 0:01:08.2]}
18. Rbd1 {[%clk 0:02:10.5]} 18... Nc6 {[%clk 0:00:59.3]} 19. Rfe1 {[%clk
0:02:06.9]} 19... h6 {[%clk 0:00:47.9]} 20. Bf6 {[%clk 0:02:06]} 20... Qc8
{[%clk 0:00:36.1]} 21. Bxg7 {[%clk 0:02:05.1]} 21... Kxg7 {[%clk 0:00:37.6]} 22.
Nd4 {[%clk 0:01:48.7]} 22... Nxd4 {[%clk 0:00:33.8]} 23. Qxd4+ {[%clk
0:01:50.6]} 23... Kg8 {[%clk 0:00:35]} 24. Re7 {[%clk 0:01:49.9]} 24... Ne6
{[%clk 0:00:35]} 25. Qb2 {[%clk 0:01:31.6]} 25... a5 {[%clk 0:00:31.4]} 26. Rdd7
{[%clk 0:01:23.6]} 26... Qc5 {[%clk 0:00:24]} 27. h4 {[%clk 0:01:07]} 27... Qc6
{[%clk 0:00:21]} 28. Qf6 {[%clk 0:01:05.3]} 28... h5 {[%clk 0:00:20.1]} 29. Rxf7
{[%clk 0:00:57.2]} 1-0

[Event "*** Qualifier 4: Titled Tuesday 3|2 Blitz"]
[Site "Chess.com"]
[Date "2017.04.25"]
[Round "3"]
[White "brauliocuarta"]
[Black "poummba"]
[Result "0-1"]
[WhiteElo "2039"]
[BlackElo "2363"]
[TimeControl "180+2"]
[EndTime "13:32:27 PDT"]
[Termination "poummba won by checkmate"]

1. d4 {[%clk 0:03:01.9]} 1... g6 {[%clk 0:02:54.9]} 2. c4 {[%clk 0:02:59.7]}
2... Bg7 {[%clk 0:02:56.3]} 3. e4 {[%clk 0:03:00.4]} 3... d6 {[%clk 0:02:57.6]}
4. f4 {[%clk 0:03:00]} 4... Nc6 {[%clk 0:02:52.7]} 5. d5 {[%clk 0:02:58.4]} 5...
Nd4 {[%clk 0:02:48.6]} 6. Nf3 {[%clk 0:02:59.1]} 6... Bg4 {[%clk 0:02:48.5]} 7.
Be2 {[%clk 0:03:00]} 7... Nxe2 {[%clk 0:02:49.6]} 8. Qxe2 {[%clk 0:02:59.6]}
8... c6 {[%clk 0:02:47.1]} 9. O-O {[%clk 0:02:54.1]} 9... Nf6 {[%clk 0:02:46.8]}
10. e5 {[%clk 0:02:06.5]} 10... Nd7 {[%clk 0:02:44.7]} 11. exd6 {[%clk
0:02:05.7]} 11... cxd5 {[%clk 0:02:46.1]} 12. cxd5 {[%clk 0:01:45]} 12... Qb6+
{[%clk 0:02:42.7]} 13. Be3 {[%clk 0:01:07.5]} 13... Qxd6 {[%clk 0:02:42]} 14.
Nc3 {[%clk 0:01:08.2]} 14... O-O {[%clk 0:02:34.4]} 15. Nb5 {[%clk 0:01:04.1]}
15... Qa6 {[%clk 0:02:35.2]} 16. a4 {[%clk 0:01:03.4]} 16... Nf6 {[%clk
0:02:13.1]} 17. Qd2 {[%clk 0:00:51.7]} 17... Rad8 {[%clk 0:02:02.9]} 18. Bxa7
{[%clk 0:00:37.7]} 18... Nxd5 {[%clk 0:01:59.9]} 19. Qf2 {[%clk 0:00:37.2]}
19... Nxf4 {[%clk 0:01:53]} 20. Ng5 {[%clk 0:00:35]} 20... e5 {[%clk 0:01:26.6]}
21. Bc5 {[%clk 0:00:27.2]} 21... Rfe8 {[%clk 0:01:02.2]} 22. Qh4 {[%clk
0:00:27.2]} 22... Bh5 {[%clk 0:00:40.9]} 23. Ne4 {[%clk 0:00:21.7]} 23... Qc6
{[%clk 0:00:36.5]} 24. Rfe1 {[%clk 0:00:09.9]} 24... f5 {[%clk 0:00:30.8]} 25.
Ned6 {[%clk 0:00:07.5]} 25... Qxg2# {[%clk 0:00:30.5]} 0-1

[Event "*** Qualifier 4: Titled Tuesday 3|2 Blitz"]
[Site "Chess.com"]
[Date "2017.04.25"]
[Round "3"]
[White "Ar4uha"]
[Black "johnathan113"]
[Result "0-1"]
[WhiteElo "2458"]
[BlackElo "2463"]
[TimeControl "180+2"]
[EndTime "13:32:33 PDT"]
[Termination "johnathan113 won by resignation"]

1. e4 {[%clk 0:02:55.1]} 1... c5 {[%clk 0:03:01]} 2. Nf3 {[%clk 0:02:55.7]} 2...
Nc6 {[%clk 0:03:02.3]} 3. Bb5 {[%clk 0:02:55.1]} 3... g6 {[%clk 0:03:03.3]} 4.
O-O {[%clk 0:02:56.2]} 4... Bg7 {[%clk 0:03:03.3]} 5. Re1 {[%clk 0:02:57.7]}
5... Nf6 {[%clk 0:03:03.9]} 6. e5 {[%clk 0:02:59.4]} 6... Nd5 {[%clk 0:03:04.9]}
7. Nc3 {[%clk 0:03:01.1]} 7... Nc7 {[%clk 0:03:03.4]} 8. Bxc6 {[%clk 0:03:02.2]}
8... dxc6 {[%clk 0:03:05.3]} 9. Ne4 {[%clk 0:03:02.7]} 9... b6 {[%clk
0:03:06.4]} 10. d3 {[%clk 0:03:04.6]} 10... O-O {[%clk 0:03:07.2]} 11. h3 {[%clk
0:02:54.5]} 11... Ne6 {[%clk 0:03:06.6]} 12. Be3 {[%clk 0:02:54.7]} 12... Nd4
{[%clk 0:02:57.9]} 13. Bxd4 {[%clk 0:02:55.4]} 13... cxd4 {[%clk 0:02:59.8]} 14.
Qd2 {[%clk 0:02:57.3]} 14... c5 {[%clk 0:02:59.4]} 15. Qf4 {[%clk 0:02:58.5]}
15... Bb7 {[%clk 0:02:58.8]} 16. h4 {[%clk 0:03:00]} 16... f6 {[%clk 0:02:39.1]}
17. h5 {[%clk 0:02:52.5]} 17... fxe5 {[%clk 0:02:38.6]} 18. Qg3 {[%clk
0:02:43.2]} 18... gxh5 {[%clk 0:02:24.5]} 19. Nxe5 {[%clk 0:02:33.7]} 19... Kh8
{[%clk 0:01:53]} 20. Ng5 {[%clk 0:02:11.7]} 20... Qd5 {[%clk 0:01:51.8]} 21.
Nef3 {[%clk 0:01:49.9]} 21... Bf6 {[%clk 0:01:45.9]} 22. Ne4 {[%clk 0:01:46.1]}
22... Rg8 {[%clk 0:01:45]} 23. Qh3 {[%clk 0:01:43.2]} 23... Rg7 {[%clk 0:01:40]}
24. Ng3 {[%clk 0:01:32.1]} 24... Rag8 {[%clk 0:01:35.5]} 25. Kf1 {[%clk
0:00:53.4]} 25... h4 {[%clk 0:01:30.4]} 26. Ne4 {[%clk 0:00:54.5]} 26... Rxg2
{[%clk 0:01:30.4]} 27. Qxg2 {[%clk 0:00:56.4]} 27... Rxg2 {[%clk 0:01:31.8]} 28.
Kxg2 {[%clk 0:00:58.3]} 28... Qf5 {[%clk 0:01:22.8]} 29. Nh2 {[%clk 0:00:59.4]}
29... Be5 {[%clk 0:01:15.5]} 30. Rh1 {[%clk 0:00:34.9]} 30... h3+ {[%clk
0:01:04.4]} 31. Kf1 {[%clk 0:00:36.2]} 31... Bxe4 {[%clk 0:01:05]} 32. dxe4
{[%clk 0:00:36.4]} 32... Qxe4 {[%clk 0:01:06.8]} 33. f3 {[%clk 0:00:28.6]} 33...
Qxc2 {[%clk 0:01:06.5]} 0-1

[Event "*** Qualifier 4: Titled Tuesday 3|2 Blitz"]
[Site "Chess.com"]
[Date "2017.04.25"]
[Round "3"]
[White "underdogchss"]
[Black "OparinGrigoriy"]
[Result "1-0"]
[WhiteElo "2393"]
[BlackElo "2581"]
[TimeControl "180+2"]
[EndTime "13:32:51 PDT"]
[Termination "underdogchss won by checkmate"]

1. d4 {[%clk 0:03:02]} 1... Nf6 {[%clk 0:02:59.7]} 2. Nf3 {[%clk 0:02:51.6]}
2... e6 {[%clk 0:03:01]} 3. c4 {[%clk 0:02:52.7]} 3... b6 {[%clk 0:03:01.3]} 4.
g3 {[%clk 0:02:53.7]} 4... Ba6 {[%clk 0:03:02.2]} 5. b3 {[%clk 0:02:54.3]} 5...
Bb4+ {[%clk 0:03:02.5]} 6. Bd2 {[%clk 0:02:55.5]} 6... Be7 {[%clk 0:03:04]} 7.
Nc3 {[%clk 0:02:56.6]} 7... d5 {[%clk 0:03:05.5]} 8. cxd5 {[%clk 0:02:57.6]}
8... exd5 {[%clk 0:03:07.4]} 9. Bg2 {[%clk 0:02:59]} 9... O-O {[%clk 0:03:09]}
10. O-O {[%clk 0:03:00.1]} 10... Re8 {[%clk 0:03:10.6]} 11. Ne5 {[%clk 0:02:55]}
11... Bb7 {[%clk 0:03:11]} 12. Rc1 {[%clk 0:02:45.1]} 12... Nbd7 {[%clk
0:03:11.4]} 13. Nd3 {[%clk 0:02:21.6]} 13... Nf8 {[%clk 0:03:05.6]} 14. Bf4
{[%clk 0:02:13.3]} 14... c6 {[%clk 0:03:04.3]} 15. Re1 {[%clk 0:02:12.1]} 15...
Ne6 {[%clk 0:03:04.8]} 16. Be5 {[%clk 0:02:12.7]} 16... Nd7 {[%clk 0:03:04.7]}
17. Bh3 {[%clk 0:02:09.6]} 17... Ba3 {[%clk 0:03:04.8]} 18. Rc2 {[%clk
0:02:08.8]} 18... Nxe5 {[%clk 0:03:03]} 19. Nxe5 {[%clk 0:02:09.6]} 19... Qd6
{[%clk 0:03:04.4]} 20. e3 {[%clk 0:02:08.3]} 20... Ng5 {[%clk 0:03:02.7]} 21.
Bg2 {[%clk 0:01:53.9]} 21... f6 {[%clk 0:03:03.8]} 22. Nd3 {[%clk 0:01:53.5]}
22... Rad8 {[%clk 0:03:01.9]} 23. Qg4 {[%clk 0:01:32]} 23... g6 {[%clk
0:03:01.4]} 24. h4 {[%clk 0:01:31.6]} 24... h5 {[%clk 0:02:56.4]} 25. Qd1 {[%clk
0:01:31.9]} 25... Ne6 {[%clk 0:02:55.6]} 26. Qb1 {[%clk 0:01:29.4]} 26... Kg7
{[%clk 0:02:48.5]} 27. b4 {[%clk 0:01:25.4]} 27... Ba6 {[%clk 0:02:49.8]} 28. b5
{[%clk 0:01:26.4]} 28... Bxb5 {[%clk 0:02:46.3]} 29. Nxb5 {[%clk 0:01:27.5]}
29... cxb5 {[%clk 0:02:48.2]} 30. Qxb5 {[%clk 0:01:28.5]} 30... Rc8 {[%clk
0:02:42.3]} 31. Rxc8 {[%clk 0:01:11]} 31... Rxc8 {[%clk 0:02:44.2]} 32. Qxd5
{[%clk 0:01:11.7]} 32... Qxd5 {[%clk 0:02:41.9]} 33. Bxd5 {[%clk 0:01:12.7]}
33... Nc7 {[%clk 0:02:43.6]} 34. Bc4 {[%clk 0:01:09.8]} 34... Ne8 {[%clk
0:02:44.3]} 35. Bb3 {[%clk 0:01:09.4]} 35... Rc3 {[%clk 0:02:44.2]} 36. Nf4
{[%clk 0:01:09]} 36... Nd6 {[%clk 0:02:43.3]} 37. e4 {[%clk 0:01:08.6]} 37...
Nb5 {[%clk 0:02:44.7]} 38. Ne6+ {[%clk 0:01:08]} 38... Kh6 {[%clk 0:02:44.8]}
39. e5 {[%clk 0:01:04.3]} 39... fxe5 {[%clk 0:02:43.6]} 40. dxe5 {[%clk
0:00:54]} 40... Be7 {[%clk 0:02:43.8]} 41. Rd1 {[%clk 0:00:52.5]} 41... Nc7
{[%clk 0:02:20.4]} 42. Nf4 {[%clk 0:00:47.2]} 42... Rc5 {[%clk 0:02:11]} 43. Rd7
{[%clk 0:00:45.1]} 43... Rxe5 {[%clk 0:02:09.1]} 44. Rxc7 {[%clk 0:00:44.6]}
44... Bc5 {[%clk 0:02:02.3]} 45. Rc6 {[%clk 0:00:43.6]} 45... Rf5 {[%clk
0:02:02.7]} 46. Rxg6+ {[%clk 0:00:42.9]} 46... Kh7 {[%clk 0:02:04.3]} 47. Bg8+
{[%clk 0:00:34.4]} 47... Kh8 {[%clk 0:02:04.9]} 48. Be6 {[%clk 0:00:35.6]} 48...
Re5 {[%clk 0:01:59.2]} 49. Kg2 {[%clk 0:00:31.8]} 49... Re1 {[%clk 0:01:59.1]}
50. Nxh5 {[%clk 0:00:29.4]} 50... Re2 {[%clk 0:01:51.3]} 51. Rh6# {[%clk
0:00:29.5]} 1-0

[Event "*** Qualifier 4: Titled Tuesday 3|2 Blitz"]
[Site "Chess.com"]
[Date "2017.04.25"]
[Round "3"]
[White "swayamsm"]
[Black "pastouche06"]
[Result "0-1"]
[WhiteElo "2421"]
[BlackElo "2329"]
[TimeControl "180+2"]
[EndTime "13:32:57 PDT"]
[Termination "pastouche06 won by resignation"]

1. d4 {[%clk 0:03:02]} 1... Nf6 {[%clk 0:02:59.3]} 2. c4 {[%clk 0:02:57.4]} 2...
e6 {[%clk 0:02:59.5]} 3. Nc3 {[%clk 0:02:58.6]} 3... Bb4 {[%clk 0:02:59.4]} 4.
f3 {[%clk 0:02:57.6]} 4... O-O {[%clk 0:02:48.8]} 5. a3 {[%clk 0:02:55.1]} 5...
Bxc3+ {[%clk 0:02:49.6]} 6. bxc3 {[%clk 0:02:57]} 6... Ne8 {[%clk 0:02:48.1]} 7.
e4 {[%clk 0:02:46.8]} 7... c5 {[%clk 0:02:45.2]} 8. Nh3 {[%clk 0:02:01.1]} 8...
Nc6 {[%clk 0:02:42.9]} 9. d5 {[%clk 0:01:41.1]} 9... Na5 {[%clk 0:02:35.9]} 10.
e5 {[%clk 0:01:38.7]} 10... d6 {[%clk 0:02:33.2]} 11. Bg5 {[%clk 0:01:26.8]}
11... Qc7 {[%clk 0:02:25.4]} 12. exd6 {[%clk 0:01:26]} 12... Nxd6 {[%clk
0:02:27.3]} 13. Bf4 {[%clk 0:01:23.2]} 13... e5 {[%clk 0:02:23]} 14. Bg3 {[%clk
0:01:11.6]} 14... Bxh3 {[%clk 0:02:17.5]} 15. gxh3 {[%clk 0:01:11.4]} 15...
Naxc4 {[%clk 0:02:18.6]} 16. Bd3 {[%clk 0:01:11.8]} 16... f5 {[%clk 0:02:07.7]}
17. Qe2 {[%clk 0:01:10.4]} 17... b5 {[%clk 0:02:00.6]} 18. O-O {[%clk 0:01:03]}
18... Rae8 {[%clk 0:01:54.3]} 19. a4 {[%clk 0:01:01.6]} 19... a6 {[%clk
0:01:55.6]} 20. axb5 {[%clk 0:01:02.5]} 20... axb5 {[%clk 0:01:57.5]} 21. Rfb1
{[%clk 0:00:59.4]} 21... Qd7 {[%clk 0:01:54.6]} 22. Ra6 {[%clk 0:00:56.8]} 22...
e4 {[%clk 0:01:44.8]} 23. fxe4 {[%clk 0:00:44]} 23... Nxe4 {[%clk 0:01:34.8]}
24. Bxc4 {[%clk 0:00:19.4]} 24... bxc4 {[%clk 0:01:15]} 25. Qxc4 {[%clk
0:00:16]} 25... Nd2 {[%clk 0:01:14.3]} 26. Qb5 {[%clk 0:00:17.3]} 26... Qxd5
{[%clk 0:01:10.2]} 27. Qb7 {[%clk 0:00:17.3]} 27... Qd3 {[%clk 0:00:42.3]} 28.
Ra7 {[%clk 0:00:16.6]} 28... Qxb1+ {[%clk 0:00:41]} 29. Qxb1 {[%clk 0:00:17.2]}
29... Nxb1 {[%clk 0:00:42.9]} 30. Bd6 {[%clk 0:00:18.6]} 30... Rf7 {[%clk
0:00:43.2]} 31. Ra5 {[%clk 0:00:19.5]} 31... Nxc3 {[%clk 0:00:43.5]} 32. Rxc5
{[%clk 0:00:21.1]} 32... Ne4 {[%clk 0:00:44.5]} 0-1

[Event "*** Qualifier 4: Titled Tuesday 3|2 Blitz"]
[Site "Chess.com"]
[Date "2017.04.25"]
[Round "3"]
[White "Oneofmyturns"]
[Black "Blitzstream"]
[Result "1-0"]
[WhiteElo "2515"]
[BlackElo "2442"]
[TimeControl "180+2"]
[EndTime "13:33:04 PDT"]
[Termination "Oneofmyturns won by checkmate"]

1. d4 {[%clk 0:03:02]} 1... g6 {[%clk 0:03:00.4]} 2. c4 {[%clk 0:03:02.2]} 2...
Bg7 {[%clk 0:03:02]} 3. e4 {[%clk 0:03:03.4]} 3... e6 {[%clk 0:03:03.7]} 4. f3
{[%clk 0:02:56.8]} 4... Ne7 {[%clk 0:03:04.8]} 5. Ne2 {[%clk 0:02:55]} 5... b6
{[%clk 0:03:06.3]} 6. Be3 {[%clk 0:02:55.4]} 6... Bb7 {[%clk 0:03:07.9]} 7. Nec3
{[%clk 0:02:56.6]} 7... d6 {[%clk 0:03:09.5]} 8. Be2 {[%clk 0:02:56.7]} 8... Nd7
{[%clk 0:03:11.1]} 9. Qd2 {[%clk 0:02:57.1]} 9... a6 {[%clk 0:03:09.7]} 10. a4
{[%clk 0:02:57.7]} 10... h6 {[%clk 0:03:10.8]} 11. Na3 {[%clk 0:02:57]} 11... c5
{[%clk 0:03:05.1]} 12. d5 {[%clk 0:02:54.5]} 12... e5 {[%clk 0:02:59.8]} 13. g4
{[%clk 0:02:49.3]} 13... Qc7 {[%clk 0:02:27.1]} 14. Rb1 {[%clk 0:02:40.4]} 14...
f5 {[%clk 0:02:24.8]} 15. gxf5 {[%clk 0:02:14.1]} 15... gxf5 {[%clk 0:02:25.4]}
16. Rg1 {[%clk 0:02:15.1]} 16... Bf8 {[%clk 0:02:12.4]} 17. f4 {[%clk
0:02:08.7]} 17... O-O-O {[%clk 0:02:10.3]} 18. Kd1 {[%clk 0:01:52.8]} 18... fxe4
{[%clk 0:02:01.2]} 19. Bg4 {[%clk 0:01:47.6]} 19... Kb8 {[%clk 0:02:00.4]} 20.
Nxe4 {[%clk 0:01:44.5]} 20... Rg8 {[%clk 0:01:30.7]} 21. Kc2 {[%clk 0:01:36.9]}
21... Bc8 {[%clk 0:01:30.3]} 22. Be6 {[%clk 0:01:09.2]} 22... Rxg1 {[%clk
0:00:50.8]} 23. Rxg1 {[%clk 0:01:11.1]} 23... exf4 {[%clk 0:00:43.5]} 24. Bxf4
{[%clk 0:01:13]} 24... Ne5 {[%clk 0:00:44.2]} 25. Nxd6 {[%clk 0:00:18.5]} 25...
Qxd6 {[%clk 0:00:33.5]} 26. Qe2 {[%clk 0:00:13.4]} 26... N7c6 {[%clk 0:00:23.4]}
27. dxc6 {[%clk 0:00:11.9]} 27... Qxe6 {[%clk 0:00:21.3]} 28. Qxe5+ {[%clk
0:00:08.5]} 28... Ka7 {[%clk 0:00:20.6]} 29. Qb8# {[%clk 0:00:08.6]} 1-0

[Event "*** Qualifier 4: Titled Tuesday 3|2 Blitz"]
[Site "Chess.com"]
[Date "2017.04.25"]
[Round "3"]
[White "L3on4rdo"]
[Black "Journey_to_GrandMaster_YT"]
[Result "1-0"]
[WhiteElo "2391"]
[BlackElo "2285"]
[TimeControl "180+2"]
[EndTime "13:33:09 PDT"]
[Termination "L3on4rdo won by resignation"]

1. Nf3 {[%clk 0:03:02]} 1... Nf6 {[%clk 0:03:00.2]} 2. g3 {[%clk 0:03:01.9]}
2... d6 {[%clk 0:02:59.5]} 3. Bg2 {[%clk 0:03:02.5]} 3... Nbd7 {[%clk
0:03:01.1]} 4. d4 {[%clk 0:03:03.5]} 4... e5 {[%clk 0:03:02.3]} 5. c4 {[%clk
0:03:03.4]} 5... Be7 {[%clk 0:03:02.8]} 6. Nc3 {[%clk 0:03:04.4]} 6... O-O
{[%clk 0:03:03.4]} 7. O-O {[%clk 0:03:06]} 7... c6 {[%clk 0:03:04.6]} 8. e4
{[%clk 0:03:03.6]} 8... Qe8 {[%clk 0:03:02.2]} 9. Re1 {[%clk 0:03:03.6]} 9...
Bd8 {[%clk 0:03:02.5]} 10. b3 {[%clk 0:02:35.7]} 10... Ba5 {[%clk 0:03:01.4]}
11. Bb2 {[%clk 0:02:37]} 11... b5 {[%clk 0:03:00.6]} 12. cxb5 {[%clk 0:02:34.1]}
12... cxb5 {[%clk 0:03:01.4]} 13. Nxb5 {[%clk 0:02:11.7]} 13... Bxe1 {[%clk
0:03:01.9]} 14. Qxe1 {[%clk 0:02:12.6]} 14... Qe7 {[%clk 0:02:59.3]} 15. dxe5
{[%clk 0:02:10.7]} 15... Nxe5 {[%clk 0:02:54.4]} 16. Nxe5 {[%clk 0:02:11.2]}
16... dxe5 {[%clk 0:02:55.4]} 17. Ba3 {[%clk 0:02:12.5]} 17... Qd7 {[%clk
0:02:38.6]} 18. Bxf8 {[%clk 0:02:11.5]} 18... Qxb5 {[%clk 0:02:31.9]} 19. Be7
{[%clk 0:01:54.1]} 19... Qb6 {[%clk 0:02:30.3]} 20. Rc1 {[%clk 0:01:52.8]} 20...
Bg4 {[%clk 0:02:22.2]} 21. Bc5 {[%clk 0:01:50.7]} 21... Qe6 {[%clk 0:02:20.4]}
22. f3 {[%clk 0:01:45.5]} 22... Bh5 {[%clk 0:02:18.2]} 23. Be3 {[%clk
0:01:44.2]} 23... h6 {[%clk 0:02:15.4]} 24. Qc3 {[%clk 0:01:36.8]} 24... a5
{[%clk 0:02:14.7]} 25. Qc6 {[%clk 0:01:35.6]} 25... Qxc6 {[%clk 0:02:04.7]} 26.
Rxc6 {[%clk 0:01:37.5]} 26... a4 {[%clk 0:02:05.7]} 27. b4 {[%clk 0:01:37.4]}
27... Rb8 {[%clk 0:01:57.6]} 28. a3 {[%clk 0:01:37.5]} 28... Rd8 {[%clk
0:01:58.5]} 29. g4 {[%clk 0:01:19]} 29... Bg6 {[%clk 0:01:57.7]} 30. Bf1 {[%clk
0:01:19.9]} 30... Rd1 {[%clk 0:01:53.9]} 31. Rc1 {[%clk 0:01:20.4]} 31... Rd8
{[%clk 0:01:39.8]} 32. b5 {[%clk 0:01:14.7]} 32... Ne8 {[%clk 0:01:28.9]} 33.
Ba7 {[%clk 0:01:09.4]} 33... Rd2 {[%clk 0:01:21.2]} 34. Rc8 {[%clk 0:00:44.6]}
34... f6 {[%clk 0:01:21.8]} 35. b6 {[%clk 0:00:45.9]} 35... Rb2 {[%clk
0:01:22.4]} 36. Ba6 {[%clk 0:00:47]} 36... h5 {[%clk 0:00:41.2]} 37. gxh5 {[%clk
0:00:36.2]} 37... Bxh5 {[%clk 0:00:41.4]} 38. b7 {[%clk 0:00:37.6]} 38... Bxf3
{[%clk 0:00:38.7]} 39. Rxe8+ {[%clk 0:00:37.6]} 39... Kh7 {[%clk 0:00:38.8]} 40.
b8=Q {[%clk 0:00:38.8]} 40... Rg2+ {[%clk 0:00:38.8]} 41. Kf1 {[%clk 0:00:39.8]}
41... Rxh2 {[%clk 0:00:38.8]} 42. Rh8+ {[%clk 0:00:39.4]} 1-0